bitfinex/quotes_SOLUSD_20241013
["timestamp","ask_amount","ask_price","bid_price","bid_amount"]
[1728811336485,1.15472505,147.08,147.03,11.20687293]
[1728811337365,1.15472505,147.07,147.03,11.20687293]
[1728811337683,1.15472505,147.09,147.03,11.20687293]
[1728811338782,6.799,147.08,146.99,23.92463029]
[1728811338982,1.15472505,147.07,147.02,11.20687293]
[1728811339864,17.08132505,147.07,147.01,11.20687293]
[1728811340082,23.88082505,147.07,147.0,11.20687293]
[1728811340283,23.88082505,147.07,147.01,20.0]
[1728811341972,23.88082505,147.07,147.01,11.20687293]
[1728811342182,17.08132505,147.07,147.02,11.20687293]
[1728811344996,17.08132505,147.07,147.01,11.20687293]
[1728811345200,23.88082505,147.07,147.01,11.20687293]
[1728811347995,6.7999,147.06,147.0,20.0]
[1728811348184,1.15472505,147.05,147.0,20.0]
[1728811348694,7.95512505,147.05,146.98,11.20687293]
[1728811348897,7.95512505,147.05,146.99,20.0]
[1728811350083,1.15472505,147.05,146.99,20.0]
[1728811350285,1.15472505,147.04,146.99,20.0]
[1728811351198,1.15472505,147.05,146.99,20.0]
[1728811351898,1.15472505,147.05,146.99,11.20687293]
[1728811355484,1.15472505,147.05,147.0,11.20687293]
[1728811360705,1.15472505,147.05,147.01,11.20687293]
[1728811360907,1.15472505,147.04,147.01,11.20687293]
[1728811361505,1.15472505,147.06,147.01,11.20687293]
[1728811361910,1.15472505,147.06,147.02,11.20687293]
[1728811365300,1.15472505,147.06,147.01,11.20687293]
[1728811368211,1.15472505,147.06,147.0,11.20687293]
[1728811380720,7.95462505,147.06,146.99,11.20687293]
[1728811382025,7.95462505,147.06,147.0,11.20687293]
[1728811398552,6.8005,147.05,146.98,20.0]
[1728811398727,1.15472505,147.04,146.99,11.20687293]
[1728811399858,7.95472505,147.06,146.99,11.20687293]
[1728811402982,7.95472505,147.06,146.99,12.56732137]
[1728811404834,1.15472505,147.06,147.01,11.20687293]
[1728811405746,1.15472505,147.06,147.02,11.20687293]
[1728811408552,1.15472505,147.06,147.01,11.20687293]
[1728811415168,1.15472505,147.06,147.0,31.20687293]
[1728811415461,1.15472505,147.06,147.0,20.0]
[1728811417855,1.15472505,147.06,146.99,34.98375693]
[1728811418065,1.15472505,147.06,147.0,31.20687293]
[1728811425173,1.15472505,147.06,147.01,11.20687293]
[1728811429068,1.15472505,147.06,147.02,11.20687293]
[1728811430363,1.15472505,147.06,147.03,11.20687293]
[1728811433580,1.15472505,147.06,147.02,11.20687293]
[1728811438459,1.15472505,147.06,147.0,23.776884]
[1728811438659,1.15472505,147.06,147.02,11.20687293]
[1728811441184,1.15472505,147.06,147.01,31.20687293]
[1728811447299,1.15472505,147.06,147.01,20.0]
[1728811447486,1.15472505,147.06,147.01,31.20687293]
[1728811452978,1.15472505,147.06,147.01,32.56713289]
[1728811453988,1.15472505,147.06,147.01,31.20687293]
[1728811462193,1.15472505,147.06,147.01,11.20687293]
[1728811463694,1.15472505,147.06,147.01,12.56712331]
[1728811470514,17.08132505,147.07,147.03,11.20687293]
[1728811471802,1.15472505,147.06,147.03,11.20687293]
[1728811481910,17.08132505,147.07,147.03,11.20687293]
[1728811482974,1.15472505,147.06,147.03,11.20687293]
[1728811483911,15.9266,147.07,147.04,11.20687293]
[1728811485101,1.15472505,147.06,147.04,11.20687293]
[1728811485481,15.9266,147.07,147.04,11.20687293]
[1728811485686,17.08132505,147.07,147.04,11.20687293]
[1728811486616,1.15472505,147.06,147.04,11.20687293]
[1728811488610,1.15472505,147.06,147.03,11.20687293]
[1728811493922,1.15472505,147.06,146.97,17.4983]
[1728811494086,6.8007,147.05,146.99,11.20687293]
[1728811494415,1.15472505,147.04,146.99,11.20687293]
[1728811497127,1.15472505,147.04,146.97,23.776884]
[1728811497291,1.15472505,147.04,146.99,11.20687293]
[1728811500420,1.15472505,147.04,146.98,31.20687293]
[1728811502238,1.15472505,147.04,146.98,20.0]
[1728811502412,22.8122,147.03,146.96,11.20687293]
[1728811502717,1.15472505,147.02,146.97,20.0]
[1728811503310,7.95652505,147.02,146.96,11.20687293]
[1728811506605,13.3061,147.01,146.91,43.776884]
[1728811506802,7.95752505,147.0,146.91,20.0]
[1728811507006,16.0105,146.99,146.94,20.0]
[1728811507228,1.15472505,146.98,146.94,20.0]
[1728811510925,1.15472505,146.98,146.93,11.20687293]
[1728811512220,1.15472505,146.98,146.92,11.20687293]
[1728811513522,7.95842505,146.98,146.92,11.20687293]
[1728811515205,7.95842505,146.98,146.87,6.03561127]
[1728811515206,1.15472505,146.98,146.87,6.03561127]
[1728811515435,6.5908,146.97,146.89,11.20687293]
[1728811515724,1.15472505,146.96,146.89,11.20687293]
[1728811516523,7.95932505,146.96,146.89,11.20687293]
[1728811518237,22.1988,146.95,146.88,20.0]
[1728811518410,1.15472505,146.94,146.89,11.20687293]
[1728811520911,1.15472505,146.94,146.87,20.0]
[1728811521118,1.15472505,146.94,146.89,11.20687293]
[1728811521321,1.15472505,146.94,146.87,20.0]
[1728811521527,1.15472505,146.94,146.89,11.20687293]
[1728811521812,1.15472505,146.94,146.9,11.20687293]
[1728811522235,1.15472505,146.94,146.87,20.0]
[1728811522430,1.15472505,146.94,146.89,11.20687293]
[1728811527634,1.15472505,146.94,146.9,12.56824905]
[1728811527842,15.3935,146.95,146.93,11.20687293]
[1728811528063,1.15472505,146.96,146.93,11.20687293]
[1728811529749,7.74552505,146.97,146.93,11.20687293]
[1728811530049,7.74552505,146.97,146.94,11.20687293]
[1728811530253,7.74552505,146.97,146.93,11.20687293]
[1728811530838,6.5908,146.97,146.93,11.20687293]
[1728811531529,7.74552505,146.97,146.93,11.20687293]
[1728811532630,6.5908,146.97,146.93,11.20687293]
[1728811534967,1.15472505,146.96,146.93,11.20687293]
[1728811535553,7.74552505,146.97,146.93,11.20687293]
[1728811536758,6.5908,146.97,146.93,11.20687293]
[1728811537069,1.15472505,146.96,146.93,11.20687293]
[1728811542173,1.15472505,146.96,146.9,23.776884]
[1728811542376,1.15472505,146.96,146.92,11.20687293]
[1728811544040,1.15472505,146.96,146.91,20.0]
[1728811544273,1.15472505,146.96,146.92,11.20687293]
[1728811547559,7.95922505,146.96,146.91,11.20687293]
[1728811547769,6.805,146.95,146.87,23.776884]
[1728811547954,1.15472505,146.94,146.9,11.20687293]
[1728811549472,1.15472505,146.94,146.91,11.20687293]
[1728811549682,7.95942505,146.96,146.91,11.20687293]
[1728811550282,1.15472505,146.96,146.92,11.20687293]
[1728811551385,1.15472505,146.96,146.91,11.20687293]
[1728811553562,7.95922505,146.96,146.87,23.776884]
[1728811553860,7.95922505,146.96,146.91,11.20687293]
[1728811554951,7.95922505,146.96,146.9,11.20687293]
[1728811556855,7.95922505,146.96,146.88,1.3613007]
[1728811556856,7.95922505,146.96,146.91,11.20687293]
[1728811557259,1.15472505,146.96,146.92,11.20687293]
[1728811560361,1.15472505,146.96,146.91,11.20687293]
[1728811562275,7.95972505,146.96,146.9,11.20687293]
[1728811565086,7.95972505,146.96,146.91,11.20687293]
[1728811568999,7.95972505,146.96,146.9,11.20687293]
[1728811569668,6.8054,146.95,146.89,11.20687293]
[1728811569872,1.15472505,146.94,146.89,11.20687293]
[1728811570383,6.8055,146.94,146.89,11.20687293]
[1728811570575,1.15472505,146.93,146.89,11.20687293]
[1728811572496,1.15472505,146.93,146.88,20.0]
[1728811572497,1.15472505,146.93,146.9,11.20687293]
[1728811574896,6.8052,146.95,146.9,11.20687293]
[1728811575192,1.15472505,146.94,146.9,11.20687293]
[1728811576598,23.00382505,146.94,146.88,1.3614054]
[1728811576796,23.00382505,146.94,146.89,11.20687293]
[1728811579800,23.00382505,146.94,146.87,1.36149128]
[1728811579801,16.19802505,146.94,146.9,11.20687293]
[1728811579987,16.19802505,146.94,146.91,11.20687293]
[1728811582084,1.15472505,146.94,146.91,11.20687293]
[1728811584284,1.15472505,146.95,146.91,11.20687293]
[1728811590886,6.8051,146.95,146.91,11.20687293]
[1728811591096,1.15472505,146.94,146.91,11.20687293]
[1728811591614,1.15472505,146.94,146.89,11.20687293]
[1728811595312,7.96032505,146.94,146.89,11.20687293]
[1728811599889,6.806,146.93,146.86,11.2148]
[1728811600089,1.15472505,146.92,146.88,11.20687293]
[1728811601095,1.15472505,146.92,146.87,20.0]
[1728811601096,1.15472505,146.92,146.89,11.20687293]
[1728811602925,1.15472505,146.92,146.9,11.20687293]
[1728811603108,1.15472505,146.93,146.9,11.20687293]
[1728811605522,1.15472505,146.93,146.89,11.20687293]
[1728811605704,1.15472505,146.93,146.9,11.20687293]
[1728811606722,7.95932505,146.96,146.9,11.20687293]
[1728811607496,7.95932505,146.96,146.91,11.20687293]
[1728811613218,7.95932505,146.96,146.9,11.20687293]
[1728811614008,6.8053,146.95,146.9,11.20687293]
[1728811614211,1.15472505,146.94,146.9,11.20687293]
[1728811614609,6.8053,146.95,146.9,11.20687293]
[1728811616623,28.7501,146.97,146.91,11.20687293]
[1728811617141,1.15472505,146.96,146.91,11.20687293]
[1728811618041,1.15472505,146.96,146.92,11.20687293]
[1728811620024,1.15472505,146.96,146.93,11.20687293]
[1728811620522,1.15472505,146.96,146.92,11.20687293]
[1728811625951,1.15472505,146.96,146.87,23.776884]
[1728811626243,7.95962505,146.96,146.91,11.20687293]
[1728811626552,7.95962505,146.96,146.9,11.20687293]
[1728811627749,23.776884,146.95,146.86,3.96956789]
[1728811627933,1.15472505,146.94,146.88,11.20687293]
[1728811628255,7.96052505,146.94,146.88,11.20687293]
[1728811628623,1.15472505,146.94,146.9,11.20687293]
[1728811628831,6.8049,146.96,146.9,11.20687293]
[1728811628832,1.15472505,146.95,146.9,11.20687293]
[1728811631938,1.15472505,146.95,146.92,11.20687293]
[1728811633053,1.15472505,146.96,146.92,11.20687293]
[1728811635157,15.3549,146.97,146.93,11.20687293]
[1728811635347,16.50962505,146.97,146.93,11.20687293]
[1728811637596,23.31392505,146.97,146.88,20.0]
[1728811637897,23.31392505,146.97,146.93,11.20687293]
[1728811639085,15.3549,146.97,146.94,11.20687293]
[1728811639587,16.50962505,146.97,146.94,11.20687293]
[1728811642678,21.15472505,147.0,146.94,11.20687293]
[1728811642883,7.95782505,147.0,146.95,11.20687293]
[1728811647990,7.95782505,147.0,146.97,11.20687293]
[1728811647991,1.15472505,147.0,146.97,11.20687293]
[1728811649887,1.15472505,147.0,146.98,11.20687293]
[1728811650094,15.3741,147.01,146.98,11.20687293]
[1728811650398,37.72812505,147.04,146.98,11.20687293]
[1728811651460,6.8018,147.02,146.98,11.20687293]
[1728811651663,1.15472505,147.01,146.98,11.20687293]
[1728811653966,1.15472505,147.01,146.97,11.20687293]
[1728811655447,6.8023,147.01,146.97,11.20687293]
[1728811655648,1.15472505,147.0,146.97,11.20687293]
[1728811656167,1.15472505,147.0,146.96,11.20687293]
[1728811656367,1.15472505,147.0,146.97,11.20687293]
[1728811656572,6.8019,147.02,146.97,11.20687293]
[1728811656774,1.15472505,147.01,146.97,11.20687293]
[1728811658067,1.15472505,147.01,146.98,11.20687293]
[1728811664278,1.15472505,147.01,146.99,11.20687293]
[1728811664475,7.95662505,147.02,146.99,11.20687293]
[1728811665473,1.15472505,147.01,146.99,11.20687293]
[1728811665706,1.15472505,147.01,146.98,11.20687293]
[1728811665978,1.15472505,147.03,146.99,11.20687293]
[1728811666187,6.4624,147.05,147.02,11.20687293]
[1728811666477,7.95412505,147.07,147.02,11.20687293]
[1728811668356,7.95412505,147.07,147.03,11.20687293]
[1728811669060,1.15472505,147.07,147.03,11.20687293]
[1728811670555,7.95422505,147.07,147.02,11.20687293]
[1728811670879,7.95422505,147.07,147.01,11.20687293]
[1728811679671,6.7999,147.06,147.01,11.20687293]
[1728811679969,1.15472505,147.05,147.01,11.20687293]
[1728811685999,1.15472505,147.07,147.02,11.20687293]
[1728811686176,7.95422505,147.07,147.04,11.20687293]
[1728811686512,7.95422505,147.07,146.97,20.0]
[1728811686513,17.72812505,147.08,147.06,11.20687293]
[1728811686699,6.7979,147.11,147.07,11.20687293]
[1728811686897,6.7979,147.11,147.01,11.2148]
[1728811686898,7.95202505,147.12,147.08,11.20687293]
[1728811687195,1.15472505,147.12,147.08,11.20687293]
[1728811687693,1.15472505,147.12,147.09,11.20687293]
[1728811688228,22.8454,147.13,147.09,11.20687293]
[1728811688229,16.0486,147.13,147.09,11.20687293]
[1728811688398,17.20332505,147.13,147.09,11.20687293]
[1728811689387,17.20332505,147.13,147.08,11.20687293]
[1728811689591,24.00012505,147.13,147.08,11.20687293]
[1728811691102,24.00012505,147.13,147.02,7.28229436]
[1728811691103,17.20332505,147.13,147.03,43.776884]
[1728811691287,6.7972,147.12,147.07,11.20687293]
[1728811691673,1.15472505,147.11,147.07,11.20687293]
[1728811698410,2.15472505,147.11,147.07,11.20687293]
[1728811703613,1.0,147.11,147.09,11.20687293]
[1728811703823,1.0,147.11,147.1,11.20687293]
[1728811714520,1.15472505,147.16,147.1,11.20687293]
[1728811714813,1.15472505,147.16,147.13,11.20687293]
[1728811717913,1.15472505,147.16,147.11,11.20687293]
[1728811719518,6.7944,147.18,147.13,11.20687293]
[1728811719722,6.7944,147.18,147.1,11.2148]
[1728811719723,1.15472505,147.17,147.14,11.20687293]
[1728811720906,1.15472505,147.17,147.13,11.20687293]
[1728811724038,1.15472505,147.17,147.14,11.20687293]
[1728811724934,23.84622505,147.18,147.14,11.20687293]
[1728811726008,1.15472505,147.17,147.14,11.20687293]
[1728811727435,17.05182505,147.18,147.15,11.20687293]
[1728811730641,17.05182505,147.18,147.14,11.20687293]
[1728811733042,23.84632505,147.18,147.11,23.46163386]
[1728811733352,6.7955,147.16,147.11,14.66850679]
[1728811733548,1.15472505,147.15,147.11,11.20687293]
[1728811736049,1.15472505,147.15,147.1,23.776884]
[1728811736251,1.15472505,147.15,147.11,11.20687293]
[1728811740451,1.15472505,147.15,147.12,11.20687293]
[1728811742120,7.95022505,147.16,147.12,11.20687293]
[1728811746654,1.15472505,147.16,147.12,11.20687293]
[1728811748467,1.15472505,147.16,147.11,3.47049865]
[1728811748754,6.7963,147.14,147.1,34.6757011]
[1728811748958,1.15472505,147.13,147.1,34.6757011]
[1728811749137,1.15472505,147.14,147.1,34.6757011]
[1728811749649,1.15472505,147.14,147.1,31.20687293]
[1728811751355,1.15472505,147.14,147.11,3.47319086]
[1728811752557,7.95012505,147.16,147.11,14.68006379]
[1728811752749,7.95012505,147.16,147.11,11.20687293]
[1728811753151,7.95012505,147.16,147.12,3.47319086]
[1728811753752,1.15472505,147.16,147.12,14.68006379]
[1728811753944,1.15472505,147.16,147.13,11.20687293]
[1728811758457,1.15472505,147.16,147.12,11.20687293]
[1728811763167,1.15472505,147.16,147.1,34.98375693]
[1728811768379,1.15472505,147.16,147.11,1.35929527]
[1728811768857,1.15472505,147.16,147.1,34.98375693]
[1728811770978,1.15472505,147.16,147.11,1.35929398]
[1728811772172,1.15472505,147.16,147.1,34.98375693]
[1728811774477,1.15472505,147.16,147.11,12.56616748]
[1728811776069,1.15472505,147.16,147.11,11.20687293]
[1728811800066,1.15472505,147.16,147.12,20.0]
[1728811800277,1.15472505,147.17,147.12,20.0]
[1728811800579,7.94952505,147.17,147.11,11.20687293]
[1728811802101,1.15472505,147.17,147.11,11.20687293]
[1728811802295,1.15472505,147.17,147.12,1.35919607]
[1728811802595,1.15472505,147.17,147.12,11.20687293]
[1728811803175,1.15472505,147.17,147.13,11.20687293]
[1728811806000,1.15472505,147.17,147.1,20.0]
[1728811806302,1.15472505,147.17,147.11,11.20687293]
[1728811811406,1.15472505,147.17,147.12,1.35922243]
[1728811811704,1.15472505,147.17,147.12,12.56609536]
[1728811815715,1.15472505,147.17,147.13,11.20687293]
[1728811816611,1.15472505,147.17,147.14,3.47825544]
[1728811816815,1.15472505,147.17,147.13,11.20687293]
[1728811816988,1.15472505,147.17,147.14,3.47825237]
[1728811817303,1.15472505,147.17,147.13,11.20687293]
[1728811817503,1.15472505,147.17,147.14,3.47830213]
[1728811817705,1.15472505,147.17,147.13,11.20687293]
[1728811818203,1.15472505,147.17,147.14,3.47829932]
[1728811818404,1.15472505,147.17,147.13,11.20687293]
[1728811818604,1.15472505,147.17,147.14,3.47836943]
[1728811818808,1.15472505,147.17,147.13,11.20687293]
[1728811819025,1.15472505,147.17,147.14,3.47836559]
[1728811819195,1.15472505,147.17,147.13,11.20687293]
[1728811819380,1.15472505,147.17,147.14,3.47844469]
[1728811819702,1.15472505,147.17,147.11,11.20687293]
[1728811819901,7.94952505,147.17,147.12,3.47871293]
[1728811820084,7.94952505,147.17,147.13,3.47871293]
[1728811820285,7.94952505,147.17,147.14,3.47871293]
[1728811820479,7.94952505,147.17,147.11,11.20687293]
[1728811820692,7.94952505,147.17,147.12,3.47891403]
[1728811820896,7.94952505,147.17,147.13,3.47891403]
[1728811821202,7.94952505,147.17,147.14,3.47891403]
[1728811821407,7.94952505,147.17,147.11,11.20687293]
[1728811821994,7.94952505,147.17,147.12,3.47896321]
[1728811822387,7.94952505,147.17,147.13,3.47896321]
[1728811822592,7.94952505,147.17,147.14,3.47896321]
[1728811822905,6.7954,147.16,147.11,11.20687293]
[1728811823205,1.15472505,147.15,147.12,3.47994731]
[1728811823379,1.15472505,147.15,147.13,3.47994731]
[1728811823586,1.15472505,147.15,147.11,11.20687293]
[1728811823787,1.15472505,147.15,147.12,3.4799966]
[1728811823988,1.15472505,147.15,147.13,3.4799966]
[1728811824195,7.94952505,147.17,147.11,11.20687293]
[1728811824401,7.94952505,147.17,147.12,3.47985803]
[1728811824590,7.94952505,147.17,147.13,3.47985803]
[1728811824800,7.94952505,147.17,147.11,11.20687293]
[1728811825103,7.94952505,147.17,147.12,3.48081965]
[1728811825305,7.94952505,147.17,147.11,11.20687293]
[1728811825481,7.94952505,147.17,147.13,3.48082188]
[1728811825682,7.94952505,147.17,147.11,11.20687293]
[1728811825903,7.94952505,147.17,147.12,3.48147661]
[1728811826093,7.94952505,147.17,147.13,3.48147661]
[1728811826289,7.94952505,147.17,147.11,11.20687293]
[1728811826496,7.94952505,147.17,147.12,3.48133001]
[1728811826692,7.94952505,147.17,147.13,3.48133001]
[1728811826893,7.94952505,147.17,147.11,11.20687293]
[1728811827096,7.94952505,147.17,147.12,3.48132669]
[1728811827411,7.94952505,147.17,147.13,3.48132669]
[1728811827597,7.94952505,147.17,147.11,11.20687293]
[1728811827795,7.94952505,147.17,147.12,3.48123124]
[1728811828106,7.94952505,147.17,147.13,3.48123124]
[1728811828317,7.94952505,147.17,147.11,11.20687293]
[1728811828497,7.94952505,147.17,147.12,3.48112291]
[1728811828808,7.94952505,147.17,147.11,11.20687293]
[1728811829309,7.94952505,147.17,147.12,3.48113137]
[1728811829507,7.94952505,147.17,147.13,3.48113137]
[1728811829711,7.94952505,147.17,147.11,11.20687293]
[1728811830410,7.94952505,147.17,147.11,31.20687293]
[1728811831189,7.94952505,147.17,147.12,3.48100422]
[1728811831394,7.94952505,147.17,147.13,3.48100422]
[1728811831593,7.94952505,147.17,147.11,31.20687293]
[1728811831808,7.94952505,147.17,147.12,3.48092815]
[1728811832006,7.94952505,147.17,147.13,3.48092815]
[1728811832412,7.94952505,147.17,147.11,31.20687293]
[1728811832602,7.94952505,147.17,147.12,3.48101774]
[1728811832805,7.94952505,147.17,147.13,3.48101774]
[1728811833003,7.94952505,147.17,147.11,31.20687293]
[1728811833217,7.94952505,147.17,147.12,3.48101564]
[1728811833421,7.94952505,147.17,147.13,3.48101564]
[1728811833588,7.94952505,147.17,147.11,31.20687293]
[1728811833790,7.94952505,147.17,147.12,3.48092909]
[1728811834086,7.94952505,147.17,147.13,3.48092909]
[1728811834287,7.94952505,147.17,147.11,31.20687293]
[1728811834513,7.94952505,147.17,147.12,3.48084087]
[1728811834714,7.94952505,147.17,147.13,3.48084087]
[1728811834915,7.94952505,147.17,147.11,31.20687293]
[1728811835117,7.94952505,147.17,147.12,3.48084087]
[1728811835319,7.94952505,147.17,147.13,3.48084087]
[1728811835617,7.94952505,147.17,147.11,11.20687293]
[1728811835796,7.94952505,147.17,147.12,3.48073369]
[1728811835999,7.94952505,147.17,147.13,3.48073369]
[1728811836201,7.94952505,147.17,147.11,11.20687293]
[1728811836523,7.94952505,147.17,147.12,3.48058454]
[1728811836695,7.94952505,147.17,147.13,3.48058454]
[1728811836996,7.94952505,147.17,147.11,11.20687293]
[1728811837199,7.94952505,147.17,147.12,3.48054285]
[1728811837390,7.94952505,147.17,147.13,3.48054285]
[1728811837604,7.94952505,147.17,147.11,11.20687293]
[1728811837803,7.94952505,147.17,147.12,3.48047162]
[1728811838009,7.94952505,147.17,147.13,3.48047162]
[1728811838198,7.94952505,147.17,147.11,11.20687293]
[1728811838396,7.94952505,147.17,147.12,3.48039812]
[1728811838618,7.94952505,147.17,147.13,3.48039812]
[1728811838818,7.94952505,147.17,147.11,11.20687293]
[1728811839120,7.94952505,147.17,147.12,3.4804125]
[1728811839416,7.94952505,147.17,147.13,3.4804125]
[1728811839618,7.94952505,147.17,147.11,11.20687293]
[1728811839820,7.94952505,147.17,147.12,3.48029516]
[1728811840023,7.94952505,147.17,147.13,3.48029516]
[1728811840225,7.94952505,147.17,147.11,11.20687293]
[1728811840520,7.94952505,147.17,147.12,3.48029627]
[1728811840696,7.94952505,147.17,147.11,11.20687293]
[1728811841096,6.7953,147.16,147.13,3.48036568]
[1728811841298,1.15472505,147.15,147.13,3.48036568]
[1728811841496,1.15472505,147.15,147.11,11.20687293]
[1728811841731,1.15472505,147.15,147.12,3.47891531]
[1728811841899,1.15472505,147.15,147.13,3.47891531]
[1728811842099,1.15472505,147.15,147.11,11.20687293]
[1728811842415,7.94972505,147.17,147.12,3.47872754]
[1728811842710,7.94972505,147.17,147.11,11.20687293]
[1728811842890,7.94972505,147.17,147.12,3.47871191]
[1728811843216,7.94972505,147.17,147.11,11.20687293]
[1728811843519,7.94972505,147.17,147.12,3.47855328]
[1728811843695,7.94972505,147.17,147.13,3.47855328]
[1728811843897,7.94972505,147.17,147.11,11.20687293]
[1728811844112,7.94972505,147.17,147.12,3.47855486]
[1728811844297,7.94972505,147.17,147.13,3.47855486]
[1728811844499,7.94972505,147.17,147.11,11.20687293]
[1728811844823,7.94972505,147.17,147.12,3.4784061]
[1728811845014,7.94972505,147.17,147.13,3.4784061]
[1728811845219,7.94972505,147.17,147.11,11.20687293]
[1728811845524,7.94972505,147.17,147.12,3.47834382]
[1728811845731,7.94972505,147.17,147.13,3.47834382]
[1728811845917,7.94972505,147.17,147.11,11.20687293]
[1728811846217,7.94972505,147.17,147.12,3.478327]
[1728811846403,7.94972505,147.17,147.13,3.478327]
[1728811846605,7.94972505,147.17,147.11,12.56618311]
[1728811846799,7.94972505,147.17,147.12,3.47839345]
[1728811846997,7.94972505,147.17,147.13,3.47839345]
[1728811847228,7.94972505,147.17,147.11,11.20687293]
[1728811847414,7.94972505,147.17,147.12,3.47831026]
[1728811847612,7.94972505,147.17,147.13,3.47831026]
[1728811847920,7.94972505,147.17,147.11,11.20687293]
[1728811848624,7.94972505,147.17,147.12,3.47833986]
[1728811849310,7.94972505,147.17,147.13,3.4784542]
[1728811849614,7.94972505,147.17,147.12,3.47833986]
[1728811849814,7.94972505,147.17,147.13,3.47847421]
[1728811850116,7.94972505,147.17,147.12,3.47833986]
[1728811850326,7.94972505,147.17,147.13,3.47858382]
[1728811850623,7.94972505,147.17,147.12,3.47833986]
[1728811850826,7.94972505,147.17,147.13,3.47858458]
[1728811851125,7.94972505,147.17,147.11,11.20687293]
[1728811851329,7.94972505,147.17,147.12,3.47872292]
[1728811851529,7.94972505,147.17,147.13,3.47872292]
[1728811851719,7.94972505,147.17,147.11,11.20687293]
[1728811852020,7.94972505,147.17,147.12,3.47878842]
[1728811852218,7.94972505,147.17,147.13,3.47878842]
[1728811852527,7.94972505,147.17,147.11,11.20687293]
[1728811852731,7.94972505,147.17,147.12,3.4789472]
[1728811852932,7.94972505,147.17,147.13,3.4789472]
[1728811853224,7.94972505,147.17,147.11,11.20687293]
[1728811853426,7.94972505,147.17,147.12,3.47912931]
[1728811853630,7.94972505,147.17,147.13,3.47912931]
[1728811853928,7.94972505,147.17,147.11,11.20687293]
[1728811854098,7.94972505,147.17,147.12,3.47910768]
[1728811854301,7.94972505,147.17,147.13,3.47910768]
[1728811854526,7.94972505,147.17,147.11,11.20687293]
[1728811854832,7.94972505,147.17,147.12,3.47918284]
[1728811855125,7.94972505,147.17,147.13,3.47918284]
[1728811855507,7.94972505,147.17,147.11,11.20687293]
[1728811855706,7.94972505,147.17,147.12,3.47883851]
[1728811855911,7.94972505,147.17,147.13,3.47883851]
[1728811856108,7.94972505,147.17,147.11,11.20687293]
[1728811856409,7.94972505,147.17,147.12,3.47880978]
[1728811856728,6.7962,147.14,147.08,31.20687293]
[1728811856909,1.15472505,147.13,147.09,3.47937061]
[1728811857101,1.15472505,147.13,147.08,31.20687293]
[1728811857304,1.15472505,147.14,147.08,31.20687293]
[1728811858528,7.95112505,147.14,147.08,20.0]
[1728811858732,1.15472505,147.13,147.09,11.20687293]
[1728811860606,1.15472505,147.14,147.09,11.20687293]
[1728811866411,7.95092505,147.14,147.09,11.20687293]
[1728811866609,1.15472505,147.13,147.09,11.20687293]
[1728811866810,1.15472505,147.13,147.08,31.20687293]
[1728811869234,7.95152505,147.13,147.06,23.8860293]
[1728811869431,7.95152505,147.13,147.08,20.0]
[1728811870520,1.15472505,147.13,147.04,11.2148]
[1728811870716,1.15472505,147.13,147.05,31.20687293]
[1728811870916,6.7973,147.12,147.05,31.20687293]
[1728811871145,1.15472505,147.11,147.07,11.20687293]
[1728811873323,1.15472505,147.11,147.05,11.20687293]
[1728811873836,7.95242505,147.11,147.05,11.20687293]
[1728811876421,6.7981,147.1,147.05,11.20687293]
[1728811876621,1.15472505,147.09,147.04,11.20687293]
[1728811876831,1.15472505,147.09,147.05,20.0]
[1728811877335,1.15472505,147.09,147.02,3.85149201]
[1728811877529,1.15472505,147.09,147.04,20.0]
[1728811877838,1.15472505,147.09,147.04,11.20687293]
[1728811879143,1.15472505,147.09,147.03,20.0]
[1728811879321,1.15472505,147.09,147.02,31.20687293]
[1728811879519,6.7993,147.08,147.02,31.20687293]
[1728811879729,1.15472505,147.07,147.02,31.20687293]
[1728811880424,1.15472505,147.07,147.03,11.20687293]
[1728811881953,1.15472505,147.07,147.02,20.0]
[1728811882153,1.15472505,147.07,147.03,11.20687293]
[1728811882965,1.15472505,147.07,147.02,20.0]
[1728811883264,1.15472505,147.07,147.03,11.20687293]
[1728811883434,1.15472505,147.08,147.03,11.20687293]
[1728811884548,1.15472505,147.08,147.02,21.36012628]
[1728811884748,7.95382505,147.08,147.02,31.20687293]
[1728811885752,7.95382505,147.08,147.02,20.0]
[1728811885923,7.95382505,147.08,147.0,20.0]
[1728811886128,7.95382505,147.08,147.02,11.20687293]
[1728811887057,7.95382505,147.08,147.03,11.20687293]
[1728811887429,1.15472505,147.08,147.03,11.20687293]
[1728811887954,1.15472505,147.08,147.0,20.0]
[1728811888129,1.15472505,147.08,147.03,11.20687293]
[1728811888329,1.15472505,147.08,147.02,11.20687293]
[1728811891250,7.95372505,147.08,147.0,20.0]
[1728811891439,7.95372505,147.08,147.02,11.20687293]
[1728811894656,7.95372505,147.08,147.0,20.0]
[1728811894657,1.15472505,147.08,147.03,11.20687293]
[1728811894867,1.15472505,147.08,147.04,11.20687293]
[1728811896246,1.15472505,147.08,147.03,11.20687293]
[1728811900168,1.15472505,147.08,147.04,12.56699696]
[1728811900556,1.15472505,147.08,147.04,11.20687293]